fUSD/lending_fUSD_20251031
["ID","MTS","AMOUNT","RATE_DAILY","PERIOD"]
[392766946,1761929555318,500.0,0.00012012,2]
[392766947,1761929555412,600.0,0.00012012,2]
[392766948,1761929555539,500.0,0.00012012,2]
[392766949,1761929555632,500.0,0.00012012,2]
[392766950,1761929555736,600.0,0.00012012,2]
[392766951,1761929555866,740.90298,0.00012012,2]
[392766952,1761929556049,500.0,0.00012012,2]
[392766953,1761929556090,500.0,0.00013,2]
[392766954,1761929556149,600.0,0.00012012,2]
[392766955,1761929556351,500.0,0.00012012,2]
[392766956,1761929556395,500.0,0.00013,2]
[392766957,1761929556456,600.0,0.00012012,2]
[392766958,1761929556676,500.0,0.00013,2]
[392766959,1761929556718,860.88521637,0.00012012,2]
[392766960,1761929556763,600.0,0.00012012,2]
[392766961,1761929557494,500.0,0.00013,2]
[392766962,1761929557582,600.0,0.00012012,2]
[392766963,1761929557668,275.89539237,0.00013,2]
[392766964,1761929557699,224.10460763,0.00013,2]
[392766965,1761929557761,600.0,0.00012012,2]
[392766966,1761929557835,500.0,0.00013,2]
[392766967,1761929557893,600.0,0.00012012,2]
[392766968,1761929557997,500.0,0.00013,2]
[392766969,1761929558046,788.51127185,0.00012012,2]
[392766970,1761929558321,500.0,0.00013,2]
[392766971,1761929558764,500.0,0.00013,2]
[392766972,1761929559166,500.0,0.00013,2]
[392766973,1761929559480,500.0,0.00013,2]
[392766974,1761929559922,500.0,0.00012012,2]
[392766975,1761929560272,500.0,0.00012012,2]
[392766976,1761929560719,500.0,0.00012012,2]
[392766977,1761929561067,500.0,0.00012012,2]
[392766978,1761929561909,500.0,0.00012012,2]
[392766979,1761929562289,500.0,0.00012012,2]
[392766980,1761929562651,500.0,0.00012012,2]
[392766981,1761929562984,500.0,0.00012012,2]
[392766982,1761929563317,500.0,0.00012012,2]
[392766983,1761929563642,500.0,0.00012012,2]
[392766984,1761929563986,872.47043703,0.00012012,2]
[392766987,1761929705267,2000.0,0.00013,2]
[392766988,1761929705737,1229.59051166,0.0001313,2]
[392766989,1761929710136,200.0,0.00013,2]
[392766990,1761929710447,200.0,0.0001313,2]
[392766991,1761929710728,200.0,0.00013261,2]
[392766992,1761929710998,200.0,0.00013394,2]
[392766993,1761929711270,200.0,0.00013528,2]
[392766996,1761929768629,-256.16478905,0.00013649,2]
[392766998,1761929837297,173.02202081,0.00013,2]
[392766999,1761929837413,169.75099559,0.00013,2]
[392767000,1761929838071,500.0,0.00013,2]
[392767001,1761929838974,1700.0,0.00013,2]
[392767002,1761929839291,1700.0,0.00013,2]
[392767003,1761929839707,1700.0,0.00013,2]
[392767004,1761929840031,1700.0,0.00013,2]
[392767005,1761929840390,1700.0,0.00013,2]
[392767006,1761929840753,1700.0,0.00013,2]
[392767007,1761929841084,1700.0,0.00013,2]
[392767008,1761929841407,1700.0,0.00013,2]
[392767009,1761929841744,1700.0,0.00013,2]
[392767010,1761929842139,1700.0,0.00013,2]
[392767011,1761929842496,1700.0,0.00013,2]
[392767012,1761929842842,500.0,0.00013,2]
[392767013,1761929843141,1700.0,0.00013,2]
[392767014,1761929843205,580.98228798,0.00013,2]
[392767015,1761929843280,500.0,0.00013,2]
[392767016,1761929843396,500.0,0.00013,2]
[392767017,1761929843455,1700.0,0.00013,2]
[392767018,1761929843641,500.0,0.00013,2]
[392767019,1761929843698,500.0,0.00012012,2]
[392767020,1761929843757,1700.0,0.00013,2]
[392767021,1761929843913,500.0,0.00013,2]
[392767022,1761929843974,1700.0,0.00012012,2]
[392767023,1761929844023,600.0,0.00012012,2]
[392767024,1761929844111,500.0,0.00013,2]
[392767025,1761929844191,1700.0,0.00012012,2]
[392767026,1761929844273,-1.51521095,0.00013649,2]
[392767027,1761929844424,498.48478921,0.00013,2]
[392767028,1761929844454,1.51521079,0.00013,2]
[392767029,1761929844539,1700.0,0.00012012,2]
[392767030,1761929845277,1700.0,0.00012012,2]
[392767031,1761929845333,500.0,0.00012012,2]
[392767032,1761929845375,237.66630996,0.00013649,2]
[392767033,1761929845420,58.14208731,0.00013649,2]
[392767034,1761929845481,1700.0,0.00012012,2]
[392767035,1761929845536,500.0,0.00012012,2]
[392767036,1761929845850,500.0,0.00013,2]
[392767037,1761929845936,1700.0,0.00012012,2]
[392767038,1761929845980,500.0,0.00012012,2]
[392767039,1761929846051,500.0,0.00013,2]
[392767040,1761929846154,1700.0,0.00012012,2]
[392767041,1761929846201,500.0,0.00012012,2]
[392767042,1761929846260,500.0,0.00013,2]
[392767043,1761929846333,1700.0,0.00012012,2]
[392767044,1761929846428,756.48186728,0.00012012,2]
[392767045,1761929846528,500.0,0.00012012,2]
[392767046,1761929846760,500.0,0.00013,2]
[392767047,1761929846831,1700.0,0.00012012,2]
[392767048,1761929846878,500.0,0.00012012,2]
[392767049,1761929847036,850.62230931,0.00013,2]
[392767050,1761929847092,500.0,0.00013,2]
[392767051,1761929847159,1700.0,0.00012012,2]
[392767052,1761929847213,500.0,0.00012012,2]
[392767053,1761929847439,500.0,0.00013,2]
[392767054,1761929847490,1700.0,0.00012012,2]
[392767055,1761929847783,500.0,0.00013,2]
[392767056,1761929847963,1700.0,0.00012012,2]
[392767057,1761929848332,1700.0,0.00012012,2]
[392767058,1761929848377,500.0,0.00013,2]
[392767059,1761929848677,2472.55663486,0.00012012,2]
[392767060,1761929848719,500.0,0.00013,2]
[392767061,1761929848806,-155.01583477,0.00013649,2]
[392767062,1761929849051,500.0,0.00013,2]
[392767063,1761929849093,500.0,0.00013,2]
[392767064,1761929849423,500.0,0.00013,2]
[392767065,1761929849471,500.0,0.00012012,2]
[392767066,1761929849762,500.0,0.00013,2]
[392767067,1761929849824,500.0,0.00012012,2]
[392767068,1761929849959,-39.88049694,0.00013649,2]
[392767069,1761929850105,115.13533783,0.00013,2]
[392767070,1761929850373,384.86466217,0.00013,2]
[392767071,1761929850413,500.0,0.00012012,2]
[392767072,1761929850496,500.0,0.00013,2]
[392767073,1761929850536,500.0,0.00012012,2]
[392767074,1761929850803,500.0,0.00012012,2]
[392767075,1761929850843,500.0,0.00013,2]
[392767076,1761929851157,500.0,0.00013,2]
[392767078,1761929851356,600.0,0.00012012,2]
[392767079,1761929851545,500.0,0.00013,2]
[392767080,1761929851924,500.0,0.00013,2]
[392767081,1761929852255,500.0,0.00013,2]
[392767082,1761929852613,500.0,0.00013,2]
[392767083,1761929853002,500.0,0.00013,2]
[392767084,1761929853333,500.0,0.00013,2]
[392767085,1761929853682,500.0,0.00013,2]
[392767086,1761929854030,500.0,0.00013,2]
[392767087,1761929854536,500.0,0.00012012,2]
[392767088,1761929854894,500.0,0.00012012,2]
[392767089,1761929857703,500.0,0.00012012,2]
[392767090,1761929858031,500.0,0.00012012,2]
[392767091,1761929858412,500.0,0.00012012,2]
[392767092,1761929858776,500.0,0.00012012,2]
[392767093,1761929859101,500.0,0.00012012,2]
[392767094,1761929859445,500.0,0.00012012,2]
[392767095,1761929859802,500.0,0.00012012,2]
[392767096,1761929860127,500.0,0.00012012,2]
[392767097,1761929860477,500.0,0.00012012,2]
[392767098,1761929861310,500.0,0.00012012,2]
[392767099,1761929861755,500.0,0.00012012,2]
[392767100,1761929862060,859.28946215,0.00012012,2]
[392767102,1761929903548,-253.03841902,0.00013649,2]
[392767103,1761929903579,-45.19084531,0.00013649,2]
[392767105,1761930014285,-105.80915469,0.00013649,2]
[392767106,1761930014307,-165.98809815,0.00013649,2]
[392767109,1761930038459,457.61349617,0.00018,30]
[392767110,1761930056742,1210.0,0.000109,5]
[392767113,1761930135425,500.0,0.00013,2]
[392767114,1761930135785,500.0,0.00013,2]
[392767115,1761930136113,500.0,0.00012012,2]
[392767116,1761930136153,500.0,0.00013,2]
[392767117,1761930141195,500.0,0.00013,2]
[392767118,1761930141486,500.0,0.00013,2]
[392767119,1761930142041,500.0,0.00013,2]
[392767120,1761930142363,500.0,0.00013,2]
[392767121,1761930143205,500.0,0.00012012,2]
[392767122,1761930143307,500.0,0.00012012,2]
[392767123,1761930143466,500.0,0.00012012,2]
[392767124,1761930143591,-34.01190185,0.00013649,2]
[392767125,1761930143614,-151.0,0.00013649,2]
[392767126,1761930143754,284.65502449,0.00012012,2]
[392767127,1761930143783,215.34497551,0.00012012,2]
[392767128,1761930144737,500.0,0.00013,2]
[392767129,1761930146519,665.55827653,0.00013,2]
[392767130,1761930147057,500.0,0.00013,2]
[392767131,1761930147840,500.0,0.00013,2]
[392767132,1761930148237,500.0,0.00013,2]
[392767133,1761930149316,507.60547542,0.00013,2]
[392767143,1761930289753,1858.67,6.925e-05,2]
[392767144,1761930289908,1858.67,7.29e-05,2]
[392767145,1761930290119,1858.67,7.654e-05,2]
[392767146,1761930290785,1858.67,8.019e-05,2]
[392767147,1761930290868,1858.67,8.383e-05,2]
[392767148,1761930290949,1858.67,8.748e-05,2]
[392767149,1761930291019,1858.67,9.112e-05,2]
[392767150,1761930291253,1858.67,9.477e-05,2]
[392767151,1761930291459,1858.67,9.841e-05,2]
[392767152,1761930291670,396.53194568,0.00010206,2]
[392767153,1761930291702,1462.13805432,0.00010206,2]
[392767154,1761930291894,1858.67,0.0001057,2]
[392767155,1761930292099,1858.67,0.00010935,2]
[392767156,1761930292550,1858.67,0.00011299,2]
[392767157,1761930292628,1858.67,0.00011664,2]
[392767158,1761930292732,1858.67,0.00012028,2]
[392767159,1761930292953,1858.67,0.00012393,2]
[392767160,1761930293345,396.54578618,0.00012757,2]
[392767161,1761930293380,1462.12421382,0.00012757,2]
[392767162,1761930293570,1858.67,0.00013122,2]
[392767163,1761930293789,1858.67,0.00013486,2]
[392767164,1761930325999,150.0,0.00013488,2]
[392767172,1761930632014,-179.45583676,0.00013785,2]
[392767173,1761930632024,-200.0,0.00013785,2]
[392767174,1761930632034,-300.0,0.00013819,2]
[392767175,1761930632045,-1200.0,0.00013819,2]
[392767176,1761930632054,-5710.94023389,0.0001382,2]
[392767177,1761930632076,-1980.0,0.0001382,2]
[392767178,1761930632137,-4057.16400045,0.0001382,2]
[392767179,1761930632148,-1309.0,0.0001382,2]
[392767180,1761930632173,-916.71576566,0.0001382,2]
[392767181,1761930632183,-1858.67,0.00013851,2]
[392767182,1761930632194,-3792.94,0.00013922,2]
[392767183,1761930632203,-200.0,0.00013923,2]
[392767184,1761930632212,-150.0,0.00013926,2]
[392767185,1761930632222,-150.99,0.00013927,2]
[392767186,1761930632232,-9999.99,0.00013927,2]
[392767187,1761930632241,-499.99,0.00013927,2]
[392767188,1761930632251,-999.99,0.00013927,2]
[392767189,1761930632261,-150.0,0.00013928,2]
[392767190,1761930632271,-1962.03,0.00013928,2]
[392767191,1761930632280,-527.38,0.00013931,2]
[392767192,1761930632290,-274.64,0.00013938,2]
[392767193,1761930632311,-277.35679052,0.00013985,2]
[392767194,1761930632320,-578.20924308,0.00013985,2]
[392767196,1761930632333,-163.6092921,0.00014,2]
[392767198,1761930632344,-200.0,0.00014063,2]
[392767200,1761930632354,-200.0,0.00014203,2]
[392767202,1761930632366,-892.67338722,0.00014662,2]
[392767205,1761930632376,-1016.03447546,0.000148,2]
[392767207,1761930632386,-1100.09,0.00014807,2]
[392767209,1761930632396,-250.0,0.00014807,2]
[392767211,1761930632406,-151.0,0.00014807,2]
[392767213,1761930632415,-250.0,0.00014807,2]
[392767215,1761930632426,-151.0,0.00014807,2]
[392767217,1761930632435,-250.0,0.00014807,2]
[392767219,1761930632445,-151.0,0.00014807,2]
[392767221,1761930632455,-296.52735615,0.00014807,2]
[392767222,1761930632464,-151.0,0.00014807,2]
[392767224,1761930632474,-151.0,0.00014807,2]
[392767226,1761930632483,-151.0,0.00014807,2]
[392767228,1761930632493,-151.0,0.00014807,2]
[392767230,1761930632503,-151.0,0.00014807,2]
[392767232,1761930632512,-151.0,0.00014807,2]
[392767234,1761930632522,-151.0,0.00014807,2]
[392767236,1761930632531,-151.0,0.00014807,2]
[392767238,1761930632541,-209.40437684,0.00014807,2]
[392767240,1761930632550,-500.0,0.00014807,2]
[392767242,1761930632559,-500.0,0.00014807,2]
[392767244,1761930632569,-500.0,0.00014807,2]
[392767246,1761930632578,-500.0,0.00014807,2]
[392767248,1761930632587,-500.0,0.00014807,2]
[392767250,1761930632597,-500.0,0.00014807,2]
[392767252,1761930632607,-500.0,0.00014807,2]
[392767254,1761930632617,-500.0,0.00014807,2]
[392767256,1761930632626,-642.94,0.00014807,2]
[392767258,1761930632636,-500.0,0.00014807,2]
[392767260,1761930632645,-409.46292757,0.00014807,2]
[392767262,1761930632655,-250.0,0.00014807,2]
[392767264,1761930632664,-250.0,0.00014807,2]
[392767266,1761930632674,-250.0,0.00014807,2]
[392767268,1761930632683,-250.0,0.00014807,2]
[392767270,1761930632693,-250.0,0.00014807,2]
[392767273,1761930632706,-574.12855637,0.00014807,2]
[392767275,1761930632715,-250.0,0.00014807,2]
[392767277,1761930632724,-250.0,0.00014807,2]
[392767279,1761930632734,-250.0,0.00014807,2]
[392767281,1761930632744,-250.0,0.00014807,2]
[392767283,1761930632754,-250.0,0.00014807,2]
[392767285,1761930632763,-250.0,0.00014807,2]
[392767287,1761930632773,-500.0,0.00014807,2]
[392767289,1761930632782,-500.0,0.00014807,2]
[392767291,1761930632792,-500.0,0.00014807,2]
[392767293,1761930632801,-500.0,0.00014807,2]
[392767295,1761930632810,-500.0,0.00014807,2]
[392767297,1761930632820,-500.0,0.00014807,2]
[392767299,1761930632830,-500.0,0.00014807,2]
[392767301,1761930632839,-151.0,0.00014807,2]
[392767303,1761930632849,-500.0,0.00014807,2]
[392767305,1761930632860,-151.0,0.00014807,2]
[392767307,1761930632869,-500.0,0.00014807,2]
[392767308,1761930632879,-151.0,0.00014807,2]
[392767309,1761930632888,-500.0,0.00014807,2]
[392767311,1761930632899,-151.0,0.00014807,2]
[392767314,1761930632908,-500.0,0.00014807,2]
[392767316,1761930632918,-151.0,0.00014807,2]
[392767318,1761930632930,-151.0,0.00014807,2]
[392767320,1761930632940,-151.0,0.00014807,2]
[392767322,1761930632950,-151.0,0.00014807,2]
[392767323,1761930632960,-151.0,0.00014807,2]
[392767324,1761930632970,-151.0,0.00014807,2]
[392767325,1761930632980,-151.0,0.00014807,2]
[392767326,1761930632990,-151.0,0.00014807,2]
[392767327,1761930633000,-151.0,0.00014807,2]
[392767328,1761930633010,-151.0,0.00014807,2]
[392767329,1761930633020,-151.0,0.00014807,2]
[392767330,1761930633029,-151.0,0.00014807,2]
[392767332,1761930633039,-151.0,0.00014807,2]
[392767334,1761930633048,-151.0,0.00014807,2]
[392767336,1761930633059,-151.0,0.00014807,2]
[392767338,1761930633069,-151.0,0.00014807,2]
[392767340,1761930633081,-4063.5368,0.00014846,2]
[392767341,1761930633091,-2138.8416,0.00014846,2]
[392767342,1761930633104,-751.25891,0.0001485,2]
[392767343,1761930633115,-5800.0,0.00014858,2]
[392767344,1761930633126,-5800.0,0.00014866,2]
[392767345,1761930633135,-1000.0,0.00014873,2]
[392767346,1761930633146,-234.1322,0.00014873,2]
[392767347,1761930633157,-279.5087,0.00014873,2]
[392767348,1761930633167,-5800.0,0.00014874,2]
[392767349,1761930633176,-200.0,0.0001488,2]
[392767350,1761930633186,-5800.0,0.00014883,2]
[392767351,1761930633196,-5800.0,0.00014891,2]
[392767352,1761930633205,-162.73293917,0.000149,2]
[392767353,1761930633215,-6181.287,0.000149,2]
[392767354,1761930633225,-207.3,0.000149,2]
[392767355,1761930633235,-5800.0,0.000149,2]
[392767356,1761930633244,-5000.0,0.000149,2]
[392767357,1761930633254,-151.39351312,0.000149,2]
[392767358,1761930633263,-782.5345503,0.000149,2]
[392767359,1761930633273,-8270.72318606,0.00014967,2]
[392767360,1761930633282,-500.0,0.00014973,2]
[392767361,1761930633292,-500.0,0.00014973,2]
[392767362,1761930633301,-500.0,0.00014973,2]
[392767363,1761930633311,-505.26497127,0.00014973,2]
[392767364,1761930633321,-500.0,0.00014973,2]
[392767365,1761930633331,-375.69831699,0.00014973,2]
[392767366,1761930633341,-500.0,0.00014973,2]
[392767367,1761930633351,-615.75062869,0.00014973,2]
[392767368,1761930633362,-500.0,0.00014973,2]
[392767369,1761930633371,-500.0,0.00014973,2]
[392767370,1761930633381,-468.73154136,0.00014973,2]
[392767371,1761930633391,-751.25892,0.0001498,2]
[392767372,1761930633400,-150.0,0.0001499,2]
[392767373,1761930633409,-150.0,0.0001499,2]
[392767374,1761930633419,-150.0,0.0001499,2]
[392767375,1761930633429,-213.49911288,0.0001499,2]
[392767376,1761930633439,-150.0,0.0001499,2]
[392767377,1761930633449,-150.0,0.0001499,2]
[392767378,1761930633458,-150.0,0.00014991,2]
[392767379,1761930633468,-500.0,0.00014991,2]
[392767380,1761930633478,-727.0,0.00014991,2]
[392767381,1761930633491,-150.0,0.00014991,2]
[392767382,1761930633501,-150.83032951,0.00014991,2]
[392767383,1761930633511,-150.0,0.00014991,2]
[392767384,1761930633520,-150.0,0.00014991,2]
[392767385,1761930633530,-150.0,0.00014991,2]
[392767386,1761930633539,-150.0,0.00014991,2]
[392767387,1761930633548,-150.0,0.00014991,2]
[392767388,1761930633558,-150.0,0.00014991,2]
[392767389,1761930633568,-150.0,0.00014991,2]
[392767390,1761930633578,-150.0,0.00014991,2]
[392767391,1761930633588,-200.0,0.00014991,2]
[392767392,1761930633598,-150.0,0.00014991,2]
[392767393,1761930633607,-200.0,0.00014991,2]
[392767394,1761930633618,-156.79715632,0.00014991,2]
[392767395,1761930633628,-500.0,0.00014991,2]
[392767396,1761930633638,-500.0,0.00014991,2]
[392767397,1761930633648,-221.70766361,0.00014991,2]
[392767398,1761930633658,-264.96595259,0.00014991,2]
[392767399,1761930633667,-6797.6095144,0.00014994,2]
[392767400,1761930633676,-151.0,0.00014997,2]
[392767401,1761930633687,-432.2575351,0.00014998,2]
[392767402,1761930633696,-500.0,0.00014998,2]
[392767403,1761930633706,-500.0,0.00014998,2]
[392767404,1761930633716,-500.0,0.00014998,2]
[392767405,1761930633725,-500.0,0.00014998,2]
[392767406,1761930633735,-500.0,0.00014998,2]
[392767407,1761930633745,-314.73518305,0.00014998,2]
[392767408,1761930633754,-326.11506508,0.00014999,2]
[392767409,1761930633764,-500.0,0.00014999,2]
[392767410,1761930633774,-500.0,0.00014999,2]
[392767411,1761930633785,-563.72792144,0.00014999,2]
[392767412,1761930633795,-514.28691293,0.00014999,2]
[392767413,1761930633805,-500.0,0.00014999,2]
[392767414,1761930633816,-500.0,0.00014999,2]
[392767415,1761930633826,-500.0,0.00014999,2]
[392767416,1761930633837,-500.0,0.00014999,2]
[392767417,1761930633847,-500.0,0.00014999,2]
[392767418,1761930633859,-641.2,0.00014999,2]
[392767419,1761930633873,-500.0,0.00014999,2]
[392767420,1761930633884,-508.29032832,0.00014999,2]
[392767421,1761930633894,-500.0,0.00014999,2]
[392767422,1761930633904,-500.0,0.00014999,2]
[392767423,1761930633914,-500.0,0.00014999,2]
[392767424,1761930633925,-500.0,0.00014999,2]
[392767425,1761930633935,-500.0,0.00014999,2]
[392767426,1761930633945,-500.0,0.00014999,2]
[392767427,1761930633955,-500.0,0.00014999,2]
[392767428,1761930633965,-500.0,0.00014999,2]
[392767429,1761930633975,-500.0,0.00014999,2]
[392767430,1761930633984,-500.0,0.00014999,2]
[392767431,1761930633994,-500.0,0.00014999,2]
[392767432,1761930634004,-500.0,0.00014999,2]
[392767433,1761930634014,-500.0,0.00014999,2]
[392767434,1761930634024,-500.0,0.00014999,2]
[392767435,1761930634034,-483.04510273,0.00014999,2]
[392767436,1761930634044,-549.02756739,0.00014999,2]
[392767437,1761930634054,-155.667,0.00014999,2]
[392767438,1761930634065,-500.0,0.00014999,2]
[392767439,1761930634075,-500.0,0.00014999,2]
[392767440,1761930634085,-500.0,0.00014999,2]
[392767441,1761930634098,-500.0,0.00014999,2]
[392767442,1761930634110,-500.0,0.00014999,2]
[392767443,1761930634121,-179.75162294,0.00014999,2]
[392767444,1761930634131,-288.25603492,0.00014999,2]
[392767445,1761930634144,-569.61,0.00014999,2]
[392767446,1761930634154,-569.61,0.00014999,2]
[392767447,1761930634164,-569.61,0.00014999,2]
[392767448,1761930634177,-569.61,0.00014999,2]
[392767449,1761930634187,-569.61,0.00014999,2]
[392767450,1761930634199,-569.61,0.00014999,2]
[392767451,1761930634210,-569.61,0.00014999,2]
[392767452,1761930634222,-569.61,0.00014999,2]
[392767453,1761930634232,-569.61,0.00014999,2]
[392767454,1761930634242,-569.61,0.00014999,2]
[392767455,1761930634252,-569.61,0.00014999,2]
[392767456,1761930634262,-569.61,0.00014999,2]
[392767457,1761930634271,-569.61,0.00014999,2]
[392767458,1761930634281,-569.61,0.00014999,2]
[392767459,1761930634550,-569.61,0.00014999,2]
[392767460,1761930634560,-569.61,0.00014999,2]
[392767461,1761930634570,-569.61,0.00014999,2]
[392767462,1761930634581,-569.61,0.00014999,2]
[392767463,1761930634590,-569.61,0.00014999,2]
[392767464,1761930634600,-569.61,0.00014999,2]
[392767465,1761930634610,-569.61,0.00014999,2]
[392767466,1761930634620,-569.61,0.00014999,2]
[392767467,1761930634629,-569.61,0.00014999,2]
[392767468,1761930634639,-569.62,0.00014999,2]
[392767469,1761930634648,-313.20837644,0.00014999,2]
[392767470,1761930634657,-500.0,0.00014999,2]
[392767471,1761930634667,-500.0,0.00014999,2]
[392767472,1761930634676,-500.0,0.00014999,2]
[392767473,1761930634686,-500.0,0.00014999,2]
[392767474,1761930634695,-500.0,0.00014999,2]
[392767475,1761930634704,-500.0,0.00014999,2]
[392767476,1761930634715,-500.0,0.00014999,2]
[392767477,1761930634725,-500.0,0.00014999,2]
[392767478,1761930634734,-500.0,0.00014999,2]
[392767479,1761930634744,-500.0,0.00014999,2]
[392767480,1761930634755,-500.0,0.00014999,2]
[392767481,1761930634764,-501.36,0.00014999,2]
[392767482,1761930634774,-671.66837628,0.00014999,2]
[392767483,1761930634784,-3286.0,0.00015,2]
[392767484,1761930634794,-37304.82309169,0.00015,2]
[392767485,1761930634809,-62984.8138303,0.00015,2]
[392767486,1761930634822,-62004.27540733,0.00015,2]
[392767487,1761930634833,-30987.74888782,0.00015,2]
[392767488,1761930634845,-8677.8292544,0.00015,2]
[392767496,1761930637986,-500.0,0.00014973,2]
[392767497,1761930637996,-150.0,0.00014991,2]
[392767498,1761930638007,-500.0,0.00014991,2]
[392767499,1761930638016,-36928.82555157,0.00015,2]
[392767500,1761930638029,-2930.4,0.00015,2]
[392767501,1761930638044,-107311.95254484,0.00015,2]
[392767502,1761930638150,-1422.41859326,0.00015,2]
[392767503,1761930638163,-6852876.2438161,0.00015,2]
[392767504,1761930638206,-2639.48441176,0.00015,2]
[392767505,1761930638217,-21224.65968244,0.00015,2]
[392767506,1761930638229,-24802.50143573,0.00015,2]
[392767507,1761930638240,-8425.98054796,0.00015,2]
[392767508,1761930638251,-3160.4587628,0.00015,2]
[392767509,1761930638263,-324.77175755,0.00015,2]
[392767510,1761930638275,-1454.02388889,0.00015,2]
[392767511,1761930638287,-9237.89778967,0.00015,2]
[392767513,1761930638312,-53027.64813366,0.00015,2]
[392767661,1761930640159,-7117.99694944,0.00015,2]
[392767662,1761930640171,-9872.25120055,0.00015,2]
[392767663,1761930640183,-2705.9,0.00015,2]
[392767664,1761930640442,-12.32393958,0.00015,2]
[392767665,1761930640464,-9768.00691615,0.00015,2]
[392767666,1761930640499,-1089.2956524,0.00015,2]
[392767667,1761930640510,-1536.19906948,0.00015,2]
[392767668,1761930640523,-3269.59292708,0.00015,2]
[392767669,1761930640551,-2844.41884079,0.00015,2]
[392767670,1761930640565,-9874.80566363,0.00015,2]
[392767671,1761930640576,-13201.74226365,0.00015,2]
[392767672,1761930640617,-581.63690954,0.00015,2]
[392767709,1761930643156,-150.0,0.00014991,2]
[392767711,1761930643169,-330.744,0.00015,2]
[392767721,1761930643329,-1404.13,0.00015,2]
[392767722,1761930643341,-44102.8356912,0.00015,2]
[392767723,1761930643540,-1809.24139473,0.00015,2]
[392767752,1761930646186,-742.0,0.00014991,2]
[392767753,1761930646197,-8233.455984,0.00015,2]
[392767754,1761930646238,-3578.22114359,0.00015,2]
[392767755,1761930646249,-1527.89999996,0.00015,2]
[392767756,1761930646293,-10943.2837201,0.00015,2]
[392767757,1761930646348,-3124.29874533,0.00015,2]
[392767758,1761930646403,-1498.40894396,0.00015,2]
[392767761,1761930646972,-674.2188524,0.0002888,120]
[392767762,1761930646998,-280.11332365,0.00029,120]
[392767763,1761930647026,-500.0,0.0003,120]
[392767770,1761930685605,815.0,0.0003013,120]
[392767771,1761930688467,430.0,0.0003013,120]
[392767772,1761930689289,483.0,0.0003013,120]
[392767773,1761930690125,283.0,0.0003013,120]
[392767774,1761930690962,238.0,0.0003013,120]
[392767775,1761930691780,209.0,0.0003013,120]
[392767776,1761930692760,307.0,0.0003013,120]
[392767777,1761930693675,284.0,0.0003013,120]
[392767778,1761930694637,269.0,0.0003013,120]
[392767779,1761930712600,301.06618071,0.00027397,120]